bitfinex-derivatives/quotes_BNBF0:USTF0_20250507
["timestamp","ask_amount","ask_price","bid_price","bid_amount"]
[1746636874127,1.01060653,600.58,599.28,3.25973381]
[1746636874324,1.01060653,600.57,599.28,3.25973381]
[1746636874630,1.01060653,600.56,599.28,3.25973381]
[1746636875527,1.01060653,600.55,599.28,3.25973381]
[1746636875829,1.01060653,600.54,599.28,3.25973381]
[1746636876430,1.01060653,600.53,599.28,3.25973381]
[1746636876631,1.01060653,600.52,599.28,3.25973381]
[1746636877129,1.01060653,600.51,599.28,3.25973381]
[1746636877731,1.01060653,600.5,599.28,3.25973381]
[1746636878332,1.01060653,600.49,599.28,3.25973381]
[1746636879029,1.01060653,600.48,599.28,3.25973381]
[1746636879727,1.01060653,600.47,599.28,3.25973381]
[1746636879928,1.01060653,600.46,599.28,3.25973381]
[1746636880535,1.01060653,600.45,599.28,3.25973381]
[1746636880933,1.01060653,600.44,599.28,3.25973381]
[1746636881336,1.01060653,600.43,599.28,3.25973381]
[1746636881536,1.01060653,600.42,599.28,3.25973381]
[1746636882231,1.01060653,600.41,599.28,3.25973381]
[1746636882536,1.01060653,600.4,599.28,3.25973381]
[1746636883033,1.01060653,600.39,599.28,3.25973381]
[1746636883337,1.01060653,600.38,599.28,3.25973381]
[1746636883933,1.01060653,600.37,599.28,3.25973381]
[1746636884137,1.01060653,600.36,599.28,3.25973381]
[1746636884533,1.01060653,600.35,599.28,3.25973381]
[1746636885138,1.01060653,600.34,599.28,3.25973381]
[1746636885536,1.01060653,600.33,599.28,3.25973381]
[1746636885937,1.01060653,600.32,599.28,3.25973381]
[1746636886541,1.01060653,600.31,599.28,3.25973381]
[1746636887040,1.01060653,600.3,599.28,3.25973381]
[1746636887441,1.01060653,600.29,599.28,3.25973381]
[1746636888242,1.01060653,600.28,599.28,3.25973381]
[1746636889244,1.01060653,600.27,599.28,3.25973381]
[1746636889541,1.01060653,600.26,599.28,3.25973381]
[1746636890042,1.01060653,600.25,599.28,3.25973381]
[1746636890645,0.29003746,600.56,599.28,3.25973381]
[1746636890646,1.01060653,600.24,599.28,3.25973381]
[1746636890945,0.29003746,600.56,599.28,3.25973381]
[1746636890946,1.01060653,600.23,599.28,3.25973381]
[1746636891144,1.01060653,600.22,599.28,3.25973381]
[1746636891645,1.01060653,600.21,599.28,3.25973381]
[1746636892343,1.01060653,600.2,599.28,3.25973381]
[1746636892545,1.01060653,600.19,599.28,3.25973381]
[1746636892948,1.01060653,600.18,599.28,3.25973381]
[1746636893448,1.01060653,600.17,599.28,3.25973381]
[1746636893949,1.01060653,600.16,599.28,3.25973381]
[1746636894448,1.01060653,600.15,599.28,3.25973381]
[1746636894648,1.01060653,600.14,599.28,3.25973381]
[1746636895149,1.01060653,600.13,599.28,3.25973381]
[1746636895648,0.29005922,600.56,599.28,3.25973381]
[1746636896243,1.011199,600.55,599.28,3.25973381]
[1746636896846,1.011199,600.54,599.28,3.25973381]
[1746636897246,1.011199,600.53,599.28,3.25973381]
[1746636897451,1.011199,600.52,599.28,3.25973381]
[1746636897946,1.011199,600.51,599.28,3.25973381]
[1746636898451,1.011199,600.5,599.28,3.25973381]
[1746636899048,1.011199,600.49,599.28,3.25973381]
[1746636899453,1.011199,600.48,599.28,3.25973381]
[1746636900048,1.011199,600.47,599.28,3.25973381]
[1746636900349,1.011199,600.46,599.28,3.25973381]
[1746636901153,1.011199,600.45,599.28,3.25973381]
[1746636901454,1.011199,600.44,599.28,3.25973381]
[1746636901755,1.011199,600.43,599.28,3.25973381]
[1746636902454,1.011199,600.42,599.28,3.25973381]
[1746636902954,1.011199,600.41,599.28,3.25973381]
[1746636903356,1.011199,600.4,599.28,3.25973381]
[1746636903755,1.011199,600.39,599.28,3.25973381]
[1746636903956,1.011199,600.38,599.28,3.25973381]
[1746636904358,1.011199,600.37,599.28,3.25973381]
[1746636904757,1.011199,600.36,599.28,3.25973381]
[1746636904958,1.011199,600.35,599.28,3.25973381]
[1746636905356,1.011199,600.34,599.28,3.25973381]
[1746636905657,1.011199,600.33,599.28,3.25973381]
[1746636906160,1.011199,600.32,599.28,3.25973381]
[1746636906956,0.29002054,600.64,599.28,3.25973381]
[1746636906957,1.011199,600.31,599.28,3.25973381]
[1746636907557,1.011199,600.3,599.28,3.25973381]
[1746636908052,1.011199,600.29,599.28,3.25973381]
[1746636908657,1.011199,600.28,599.28,3.25973381]
[1746636909257,1.011199,600.27,599.28,3.25973381]
[1746636909760,1.011199,600.26,599.28,3.25973381]
[1746636910158,1.011199,600.25,599.28,3.25973381]
[1746636910558,1.011199,600.24,599.28,3.25973381]
[1746636911254,1.011199,600.23,599.28,3.25973381]
[1746636911858,1.011199,600.22,599.28,3.25973381]
[1746636912055,1.011199,600.21,599.28,3.25973381]
[1746636912253,1.011199,600.2,599.28,3.25973381]
[1746636912658,1.011199,600.19,599.28,3.25973381]
[1746636913259,1.011199,600.18,599.28,3.25973381]
[1746636913859,1.011199,600.17,599.28,3.25973381]
[1746636914158,1.011199,600.16,599.28,3.25973381]
[1746636914859,1.011199,600.15,599.28,3.25973381]
[1746636915459,1.011199,600.14,599.28,3.25973381]
[1746636915659,1.011199,600.13,599.28,3.25973381]
[1746636915860,1.011199,600.12,599.28,3.25973381]
[1746636916460,1.011199,600.11,599.28,3.25973381]
[1746636916960,1.011199,600.1,599.28,3.25973381]
[1746636917662,1.011199,600.09,599.28,3.25973381]
[1746636917960,1.011199,600.08,599.28,3.25973381]
[1746636918156,1.011199,600.07,599.28,3.25973381]
[1746636918360,1.011199,600.06,599.28,3.25973381]
[1746636918959,1.011199,600.05,599.28,3.25973381]
[1746636919557,0.33284516,600.88,599.28,3.25973381]
[1746636919757,0.29008703,600.5,599.28,3.25973381]
[1746636919958,0.33284516,600.88,599.28,3.25973381]
[1746636920157,0.28998671,600.5,599.28,3.25973381]
[1746636920361,1.0100894,600.49,599.28,3.25973381]
[1746636921259,1.0100894,600.48,599.28,3.25973381]
[1746636921761,1.0100894,600.47,599.28,3.25973381]
[1746636922056,1.0100894,600.46,599.28,3.25973381]
[1746636922759,1.0100894,600.45,599.28,3.25973381]
[1746636923263,1.0100894,600.44,599.28,3.25973381]
[1746636923764,1.0100894,600.43,599.28,3.25973381]
[1746636924164,1.0100894,600.42,599.28,3.25973381]
[1746636924565,1.0100894,600.41,599.28,3.25973381]
[1746636924868,1.0100894,600.4,599.28,3.25973381]
[1746636925269,1.0100894,600.39,599.28,3.25973381]
[1746636925669,1.0100894,600.38,599.28,3.25973381]
[1746636926370,1.0100894,600.37,599.28,3.25973381]
[1746636926869,1.0100894,600.36,599.28,3.25973381]
[1746636927566,1.0100894,600.35,599.28,3.25973381]
[1746636927871,1.0100894,600.34,599.28,3.25973381]
[1746636928270,1.0100894,600.33,599.28,3.25973381]
[1746636928970,1.0100894,600.32,599.28,3.25973381]
[1746636929369,1.0100894,600.31,599.28,3.25973381]
[1746636929866,1.0100894,600.3,599.28,3.25973381]
[1746636930570,1.0100894,600.29,599.28,3.25973381]
[1746636931069,1.0100894,600.28,599.28,3.25973381]
[1746636931670,1.0100894,600.27,599.28,3.25973381]
[1746636931970,1.0100894,600.26,599.28,3.25973381]
[1746636932367,1.0100894,600.25,599.28,3.25973381]
[1746636932868,1.0100894,600.24,599.28,3.25973381]
[1746636933471,0.33284516,600.88,599.28,3.25973381]
[1746636933472,1.0100894,600.23,599.28,3.25973381]
[1746636933970,1.0100894,600.22,599.28,3.25973381]
[1746636934574,1.0100894,600.21,599.28,3.25973381]
[1746636935679,1.0100894,600.2,599.28,3.25973381]
[1746636936577,1.0100894,600.19,599.28,3.25973381]
[1746636936976,1.0100894,600.18,599.28,3.25973381]
[1746636937376,1.0100894,600.17,599.28,3.25973381]
[1746636937579,1.0100894,600.16,599.28,3.25973381]
[1746636937777,1.0100894,600.15,599.28,3.25973381]
[1746636938474,1.0100894,600.14,599.28,3.25973381]
[1746636938979,1.0100894,600.13,599.28,3.25973381]
[1746636939479,1.0100894,600.12,599.28,3.25973381]
[1746636940080,1.0100894,600.11,599.28,3.25973381]
[1746636940883,1.0100894,600.1,599.28,3.25973381]
[1746636941083,1.0100894,600.09,599.28,3.25973381]
[1746636941785,1.0100894,600.08,599.28,3.25973381]
[1746636941977,1.0100894,600.07,599.28,3.25973381]
[1746636942780,1.0100894,600.06,599.28,3.25973381]
[1746636943079,1.0100894,600.05,599.28,3.25973381]
[1746636943687,1.0100894,600.04,599.28,3.25973381]
[1746636944281,1.0100894,600.03,599.28,3.25973381]
[1746636944582,1.0100894,600.02,599.28,3.25973381]
[1746636944989,0.29009186,600.47,599.28,3.25973381]
[1746636945489,1.0104507,600.46,599.28,3.25973381]
[1746636945788,1.0104507,600.45,599.28,3.25973381]
[1746636946388,1.0104507,600.44,599.28,3.25973381]
[1746636946991,1.0104507,600.43,599.28,3.25973381]
[1746636947386,1.0104507,600.42,599.28,3.25973381]
[1746636947990,1.0104507,600.41,599.28,3.25973381]
[1746636948286,1.0104507,600.4,599.28,3.25973381]
[1746636948891,1.0104507,600.39,599.28,3.25973381]
[1746636949491,1.0104507,600.38,599.28,3.25973381]
[1746636950191,1.0104507,600.37,599.28,3.25973381]
[1746636950490,0.29005076,600.47,599.28,3.25973381]
[1746636950491,1.0104507,600.36,599.28,3.25973381]
[1746636950990,1.0104507,600.35,599.28,3.25973381]
[1746636951589,1.0104507,600.34,599.28,3.25973381]
[1746636951791,1.0104507,600.33,599.28,3.25973381]
[1746636952688,1.0104507,600.32,599.28,3.25973381]
[1746636952887,1.0104507,600.31,599.28,3.25973381]
[1746636953191,1.0104507,600.3,599.28,3.25973381]
[1746636953590,1.0104507,600.29,599.28,3.25973381]
[1746636954090,1.0104507,600.28,599.28,3.25973381]
[1746636954687,1.0104507,600.27,599.28,3.25973381]
[1746636955087,1.0104507,600.26,599.28,3.25973381]
[1746636955595,1.0104507,600.25,599.28,3.25973381]
[1746636956093,1.0104507,600.24,599.28,3.25973381]
[1746636956390,1.0104507,600.23,599.28,3.25973381]
[1746636956994,1.0104507,600.22,599.28,3.25973381]
[1746636957794,1.0104507,600.21,599.28,3.25973381]
[1746636958299,1.0104507,600.2,599.28,3.25973381]
[1746636958897,1.0104507,600.19,599.28,3.25973381]
[1746636959398,1.0104507,600.18,599.28,3.25973381]
[1746636959892,1.0104507,600.17,599.28,3.25973381]
[1746636960496,1.0104507,600.16,599.28,3.25973381]
[1746636960898,1.0104507,600.15,599.28,3.25973381]
[1746636961298,1.0104507,600.14,599.28,3.25973381]
[1746636961496,1.0104507,600.13,599.28,3.25973381]
[1746636962097,1.0104507,600.12,599.28,3.25973381]
[1746636962500,1.0104507,600.11,599.28,3.25973381]
[1746636962999,1.0104507,600.1,599.28,3.25973381]
[1746636963400,1.0104507,600.09,599.28,3.25973381]
[1746636963800,1.0104507,600.08,599.28,3.25973381]
[1746636964198,1.0104507,600.07,599.28,3.25973381]
[1746636964699,1.0104507,600.06,599.28,3.25973381]
[1746636965300,1.00985766,600.05,599.28,3.25973381]
[1746636965800,1.00985766,600.04,599.28,3.25973381]
[1746636966398,1.00985766,600.03,599.28,3.25973381]
[1746636966699,1.00985766,600.02,599.28,3.25973381]
[1746636967099,1.00985766,600.01,599.28,3.25973381]
[1746636967601,0.33284516,600.88,599.28,3.25973381]
[1746636967801,0.30618226,600.87,599.28,3.25973381]
[1746636968201,1.01045348,600.86,599.28,3.25973381]
[1746636968502,1.01045348,600.85,599.28,3.25973381]
[1746636968696,1.31663574,600.85,599.28,3.25973381]
[1746636968903,0.30618226,600.84,599.28,3.25973381]
[1746636969500,1.01045348,600.83,599.28,3.25973381]
[1746636970001,1.01045348,600.82,599.28,3.25973381]
[1746636970297,1.01045348,600.81,599.28,3.25973381]
[1746636970501,1.31663574,600.81,599.28,3.25973381]
[1746636970703,1.01045348,600.8,599.28,3.25973381]
[1746636970897,1.31663574,600.8,599.28,3.25973381]
[1746636971100,1.01045348,600.79,599.28,3.25973381]
[1746636971297,1.31663574,600.79,599.28,3.25973381]
[1746636971503,1.01045348,600.78,599.28,3.25973381]
[1746636971896,1.01045348,600.77,599.28,3.25973381]
[1746636972300,1.01045348,600.76,599.28,3.25973381]
[1746636972497,0.33284516,600.88,599.28,3.25973381]
[1746636972498,1.01045348,600.75,599.28,3.25973381]
[1746636972998,1.01045348,600.74,599.28,3.25973381]
[1746636973403,1.01045348,600.73,599.28,3.25973381]
[1746636974003,1.01045348,600.72,599.28,3.25973381]
[1746636974502,1.01045348,600.71,599.28,3.25973381]
[1746636975003,1.01045348,600.7,599.28,3.25973381]
[1746636975399,1.01045348,600.69,599.28,3.25973381]
[1746636976106,1.01045348,600.68,599.28,3.25973381]
[1746636976803,1.01045348,600.67,599.28,3.25973381]
[1746636977403,1.01045348,600.66,599.28,3.25973381]
[1746636977705,1.01045348,600.65,599.28,3.25973381]
[1746636978207,1.01045348,600.64,599.28,3.25973381]
[1746636978707,1.01045348,600.63,599.28,3.25973381]
[1746636979404,1.01045348,600.62,599.28,3.25973381]
[1746636979607,1.01045348,600.61,599.28,3.25973381]
[1746636980108,1.01045348,600.6,599.28,3.25973381]
[1746636980608,1.01045348,600.59,599.28,3.25973381]
[1746636981103,1.01045348,600.58,599.28,3.25973381]
[1746636981608,1.01045348,600.57,599.28,3.25973381]
[1746636981906,1.01045348,600.56,599.28,3.25973381]
[1746636982303,1.01045348,600.55,599.28,3.25973381]
[1746636982707,1.01045348,600.54,599.28,3.25973381]
[1746636983208,1.01045348,600.53,599.28,3.25973381]
[1746636984108,1.01045348,600.52,599.28,3.25973381]
[1746636984510,1.01045348,600.51,599.28,3.25973381]
[1746636984811,1.01045348,600.5,599.28,3.25973381]
[1746636985308,1.01045348,600.49,599.28,3.25973381]
[1746636985808,1.01045348,600.48,599.28,3.25973381]
[1746636986210,1.01045348,600.47,599.28,3.25973381]
[1746636986508,0.28999638,600.64,599.28,3.25973381]
[1746636986509,1.01045348,600.46,599.28,3.25973381]
[1746636987506,0.33284516,600.88,599.28,3.25973381]
[1746636987507,1.01045348,600.45,599.28,3.25973381]
[1746636987711,1.01045348,600.44,599.28,3.25973381]
[1746636987915,1.01045348,600.43,599.28,3.25973381]
[1746636988113,1.01045348,600.42,599.28,3.25973381]
[1746636988316,1.01045348,600.41,599.28,3.25973381]
[1746636988614,1.01045348,600.4,599.28,3.25973381]
[1746636989013,1.01045348,600.39,599.28,3.25973381]
[1746636989516,1.01045348,600.38,599.28,3.25973381]
[1746636989912,1.01045348,600.37,599.28,3.25973381]
[1746636990211,1.01045348,600.36,599.28,3.25973381]
[1746636990816,1.01045348,600.35,599.28,3.25973381]
[1746636991217,1.01045348,600.34,599.28,3.25973381]
[1746636991517,1.01045348,600.33,599.28,3.25973381]
[1746636992119,1.01045348,600.32,599.28,3.25973381]
[1746636993213,1.01045348,600.31,599.28,3.25973381]
[1746636993618,1.01045348,600.3,599.28,3.25973381]
[1746636993918,1.01045348,600.29,599.28,3.25973381]
[1746636994420,1.01045348,600.28,599.28,3.25973381]
[1746636995119,1.01045348,600.27,599.28,3.25973381]
[1746636995421,1.01045348,600.26,599.28,3.25973381]
[1746636995817,1.01045348,600.25,599.28,3.25973381]
[1746636996319,1.01045348,600.24,599.28,3.25973381]
[1746636996718,1.01045348,600.23,599.28,3.25973381]
[1746636997321,1.01045348,600.22,599.28,3.25973381]
[1746636997521,0.290029,600.64,599.28,3.25973381]
[1746636998222,1.00914735,600.63,599.28,3.25973381]
[1746636999121,1.00914735,600.62,599.28,3.25973381]
[1746636999615,1.00914735,600.61,599.28,3.25973381]
[1746636999819,1.00914735,600.6,599.28,3.25973381]
[1746637000317,1.00914735,600.59,599.28,3.25973381]
[1746637000622,1.00914735,600.58,599.28,3.25973381]
[1746637001119,1.00914735,600.57,599.28,3.25973381]
[1746637001324,1.00914735,600.56,599.28,3.25973381]
[1746637001820,0.28998429,600.64,599.28,3.25973381]
[1746637001821,1.00914735,600.55,599.28,3.25973381]
[1746637002622,1.00914735,600.54,599.28,3.25973381]
[1746637002822,1.00914735,600.53,599.28,3.25973381]
[1746637003024,1.00914735,600.52,599.28,3.25973381]
[1746637003525,1.00914735,600.51,599.28,3.25973381]
[1746637003920,1.00914735,600.5,599.28,3.25973381]
[1746637004224,1.00914735,600.49,599.28,3.25973381]
[1746637004625,1.00914735,600.48,599.28,3.25973381]
[1746637005127,1.00914735,600.47,599.28,3.25973381]
[1746637005828,1.00914735,600.46,599.28,3.25973381]
[1746637006629,1.00914735,600.45,599.28,3.25973381]
[1746637006928,1.00914735,600.44,599.28,3.25973381]
[1746637007730,1.00914735,600.43,599.28,3.25973381]
[1746637008331,1.00914735,600.42,599.28,3.25973381]
[1746637008927,1.00914735,600.41,599.28,3.25973381]
[1746637009431,1.00914735,600.4,599.28,3.25973381]
[1746637009725,1.00914735,600.39,599.28,3.25973381]
[1746637010029,1.00914735,600.38,599.28,3.25973381]
[1746637010530,1.00914735,600.37,599.28,3.25973381]
[1746637011130,1.00914735,600.36,599.28,3.25973381]
[1746637011835,1.00914735,600.35,599.28,3.25973381]
[1746637012329,1.00914735,600.34,599.28,3.25973381]
[1746637012931,1.00914735,600.33,599.28,3.25973381]
[1746637013431,1.00914735,600.32,599.28,3.25973381]
[1746637013829,1.00914735,600.31,599.28,3.25973381]
[1746637014331,1.00914735,600.3,599.28,3.25973381]
[1746637014626,1.00914735,600.29,599.28,3.25973381]
[1746637015030,1.00914735,600.28,599.28,3.25973381]
[1746637015731,1.00914735,600.27,599.28,3.25973381]
[1746637016331,1.00914735,600.26,599.28,3.25973381]
[1746637016927,1.00914735,600.25,599.28,3.25973381]
[1746637017333,1.00914735,600.24,599.28,3.25973381]
[1746637018027,1.00914735,600.23,599.28,3.25973381]
[1746637018331,1.00914735,600.22,599.28,3.25973381]
[1746637019132,1.00914735,600.21,599.28,3.25973381]
[1746637019728,1.00914735,600.2,599.28,3.25973381]
[1746637020029,1.00914735,600.19,599.28,3.25973381]
[1746637020532,1.00914735,600.18,599.28,3.25973381]
[1746637021226,1.00914735,600.17,599.28,3.25973381]
[1746637022033,1.00914735,600.16,599.28,3.25973381]
[1746637022534,1.00914735,600.15,599.28,3.25973381]
[1746637022736,0.29005318,600.58,599.28,3.25973381]
[1746637023135,1.01067893,600.57,599.28,3.25973381]
[1746637023734,0.33284516,600.88,599.28,3.25973381]
[1746637023735,1.01067893,600.56,599.28,3.25973381]
[1746637024437,1.01067893,600.55,599.28,3.25973381]
[1746637024831,1.01067893,600.54,599.28,3.25973381]
[1746637025336,1.01067893,600.53,599.28,3.25973381]
[1746637025634,1.01067893,600.52,599.28,3.25973381]
[1746637026538,1.01067893,600.51,599.28,3.25973381]
[1746637027238,1.01067893,600.5,599.28,3.25973381]
[1746637027533,1.01067893,600.49,599.28,3.25973381]
[1746637027937,1.01067893,600.48,599.28,3.25973381]
[1746637028737,1.01067893,600.47,599.28,3.25973381]
[1746637028937,1.01067893,600.46,599.28,3.25973381]
[1746637029237,1.01067893,600.45,599.28,3.25973381]
[1746637029739,1.01067893,600.44,599.28,3.25973381]
[1746637030239,1.01067893,600.43,599.28,3.25973381]
[1746637030537,1.01067893,600.42,599.28,3.25973381]
[1746637030933,1.01067893,600.41,599.28,3.25973381]
[1746637031237,1.01067893,600.4,599.28,3.25973381]
[1746637032239,1.01067893,600.39,599.28,3.25973381]
[1746637033134,1.01067893,600.38,599.28,3.25973381]
[1746637033941,1.01067893,600.37,599.28,3.25973381]
[1746637034138,1.01067893,600.36,599.28,3.25973381]
[1746637034639,1.01067893,600.35,599.28,3.25973381]
[1746637035241,1.01067893,600.34,599.28,3.25973381]
[1746637035739,1.01067893,600.33,599.28,3.25973381]
[1746637036240,1.01067893,600.32,599.28,3.25973381]
[1746637036735,1.01067893,600.31,599.28,3.25973381]
[1746637037036,1.01067893,600.3,599.28,3.25973381]
[1746637037543,1.01067893,600.29,599.28,3.25973381]
[1746637037742,1.01067893,600.28,599.28,3.25973381]
[1746637038142,1.01067893,600.27,599.28,3.25973381]
[1746637038538,1.01067893,600.26,599.28,3.25973381]
[1746637038937,1.01067893,600.25,599.28,3.25973381]
[1746637039345,0.28999275,600.75,599.28,3.25973381]
[1746637039943,1.0078697,600.74,599.28,3.25973381]
[1746637040639,1.0078697,600.73,599.28,3.25973381]
[1746637041343,1.0078697,600.72,599.28,3.25973381]
[1746637041848,1.0078697,600.71,599.28,3.25973381]
[1746637042541,0.28993718,600.75,599.28,3.25973381]
[1746637042542,1.0078697,600.7,599.28,3.25973381]
[1746637042945,1.0078697,600.69,599.28,3.25973381]
[1746637043245,1.0078697,600.68,599.28,3.25973381]
[1746637043645,1.0078697,600.67,599.28,3.25973381]
[1746637044247,1.0078697,600.66,599.28,3.25973381]
[1746637044749,1.0078697,600.65,599.28,3.25973381]
[1746637045448,1.0078697,600.64,599.28,3.25973381]
[1746637046153,1.0078697,600.63,599.28,3.25973381]
[1746637046349,1.0078697,600.62,599.28,3.25973381]
[1746637047050,1.0078697,600.61,599.28,3.25973381]
[1746637047351,1.0078697,600.6,599.28,3.25973381]
[1746637047653,0.33284516,600.88,599.28,3.25973381]
[1746637047654,1.0078697,600.59,599.28,3.25973381]
[1746637047948,1.0078697,600.58,599.28,3.25973381]
[1746637048147,1.0078697,600.57,599.28,3.25973381]
[1746637048552,1.0078697,600.56,599.28,3.25973381]
[1746637049249,0.28997584,600.65,599.28,3.25973381]
[1746637049250,1.0078697,600.55,599.28,3.25973381]
[1746637050055,1.0078697,600.54,599.28,3.25973381]
[1746637050452,1.0078697,600.53,599.28,3.25973381]
[1746637051055,1.0078697,600.52,599.28,3.25973381]
[1746637051653,0.28997584,600.65,599.28,3.25973381]
[1746637051654,1.0078697,600.51,599.28,3.25973381]
[1746637051959,1.0078697,600.5,599.28,3.25973381]
[1746637052960,1.0078697,600.49,599.28,3.25973381]
[1746637053259,1.0078697,600.48,599.28,3.25973381]
[1746637053658,1.0078697,600.47,599.28,3.25973381]
[1746637053963,1.0078697,600.46,599.28,3.25973381]
[1746637054562,1.0078697,600.45,599.28,3.25973381]
[1746637054867,1.0078697,600.44,599.28,3.25973381]
[1746637055560,1.0078697,600.43,599.28,3.25973381]
[1746637056057,1.0078697,600.42,599.28,3.25973381]
[1746637056365,1.0078697,600.41,599.28,3.25973381]
[1746637057361,1.0078697,600.4,599.28,3.25973381]
[1746637057860,1.0078697,600.39,599.28,3.25973381]
[1746637058359,1.0078697,600.38,599.28,3.25973381]
[1746637059060,1.0078697,600.37,599.28,3.25973381]
[1746637059671,1.0078697,600.36,599.28,3.25973381]
[1746637060064,1.0078697,600.35,599.28,3.25973381]
[1746637060465,1.0078697,600.34,599.28,3.25973381]
[1746637061060,1.0078697,600.33,599.28,3.25973381]
[1746637061564,1.0078697,600.32,599.28,3.25973381]
[1746637062264,1.0078697,600.31,599.28,3.25973381]
[1746637062764,1.0078697,600.3,599.28,3.25973381]
[1746637063363,1.0078697,600.29,599.28,3.25973381]
[1746637063966,1.0078697,600.28,599.28,3.25973381]
[1746637064366,1.0078697,600.27,599.28,3.25973381]
[1746637064867,1.0078697,600.26,599.28,3.25973381]
[1746637065166,1.0078697,600.25,599.28,3.25973381]
[1746637065868,1.0078697,600.24,599.28,3.25973381]
[1746637066366,1.0078697,600.23,599.28,3.25973381]
[1746637066760,1.0078697,600.22,599.28,3.25973381]
[1746637067266,1.0078697,600.21,599.28,3.25973381]
[1746637067767,1.0078697,600.2,599.28,3.25973381]
[1746637068267,1.0078697,600.19,599.28,3.25973381]
[1746637069167,1.0078697,600.18,599.28,3.25973381]
[1746637069368,1.0078697,600.17,599.28,3.25973381]
[1746637069764,1.0078697,600.16,599.28,3.25973381]
[1746637070067,0.29005922,600.51,599.28,3.25973381]
[1746637070068,1.0078697,600.15,599.28,3.25973381]
[1746637070568,1.0078697,600.57,599.28,3.25973381]
[1746637070870,1.0078697,600.56,599.28,3.25973381]
[1746637071572,1.0078697,600.55,599.28,3.25973381]
[1746637072270,1.0078697,600.54,599.28,3.25973381]
[1746637072571,1.0078697,600.53,599.28,3.25973381]
[1746637073173,1.0078697,600.52,599.28,3.25973381]
[1746637073672,1.0078697,600.51,599.28,3.25973381]
[1746637074072,1.0078697,600.5,599.28,3.25973381]
[1746637075171,1.0078697,600.49,599.28,3.25973381]
[1746637075376,1.0078697,600.48,599.28,3.25973381]
[1746637075772,1.0078697,600.47,599.28,3.25973381]
[1746637075975,1.0078697,600.46,599.28,3.25973381]
[1746637076472,1.0078697,600.45,599.28,3.25973381]
[1746637076876,1.0078697,600.44,599.28,3.25973381]
[1746637077076,1.0078697,600.43,599.28,3.25973381]
[1746637077676,1.0078697,600.42,599.28,3.25973381]
[1746637077976,1.0078697,600.41,599.28,3.25973381]
[1746637078477,1.0078697,600.4,599.28,3.25973381]
[1746637078878,1.0078697,600.39,599.28,3.25973381]
[1746637079677,1.0078697,600.38,599.28,3.25973381]
[1746637080178,1.0078697,600.37,599.28,3.25973381]
[1746637080879,1.0078697,600.36,599.28,3.25973381]
[1746637081780,1.0078697,600.35,599.28,3.25973381]
[1746637082679,1.0078697,600.34,599.28,3.25973381]
[1746637083079,1.0078697,600.33,599.28,3.25973381]
[1746637083580,1.0078697,600.32,599.28,3.25973381]
[1746637084385,1.0078697,600.31,599.28,3.25973381]
[1746637085183,1.0078697,600.3,599.28,3.25973381]
[1746637085681,1.0078697,600.29,599.28,3.25973381]
[1746637086486,1.0078697,600.28,599.28,3.25973381]
[1746637087087,1.0078697,600.27,599.28,3.25973381]
[1746637087787,1.0078697,600.26,599.28,3.25973381]
[1746637088384,1.0078697,600.25,599.28,3.25973381]
[1746637088589,1.0078697,600.24,599.28,3.25973381]
[1746637089284,1.0078697,600.23,599.28,3.25973381]
[1746637089786,1.0078697,600.22,599.28,3.25973381]
[1746637090389,1.0078697,600.21,599.28,3.25973381]
[1746637091090,1.0078697,600.2,599.28,3.25973381]
[1746637091788,1.0078697,600.19,599.28,3.25973381]
[1746637092492,1.0078697,600.18,599.28,3.25973381]
[1746637092686,1.0078697,600.17,599.28,3.25973381]
[1746637093091,1.0078697,600.16,599.28,3.25973381]
[1746637093386,1.0078697,600.15,599.28,3.25973381]
[1746637093690,0.29003867,600.58,599.28,3.25973381]
[1746637094393,1.00778045,600.57,599.28,3.25973381]
[1746637095093,1.00778045,600.56,599.28,3.25973381]
[1746637095886,1.00778045,600.55,599.28,3.25973381]
[1746637096191,1.00778045,600.54,599.28,3.25973381]
[1746637096894,1.00778045,600.53,599.28,3.25973381]
[1746637097493,1.00778045,600.52,599.28,3.25973381]
[1746637097795,1.00778045,600.51,599.28,3.25973381]
[1746637098594,1.00778045,600.5,599.28,3.25973381]
[1746637099089,1.00778045,600.49,599.28,3.25973381]
[1746637099891,1.00778045,600.48,599.28,3.25973381]
[1746637100592,1.00778045,600.47,599.28,3.25973381]
[1746637101090,1.00778045,600.46,599.28,3.25973381]
[1746637101997,1.00778045,600.45,599.28,3.25973381]
[1746637102496,1.00778045,600.44,599.28,3.25973381]
[1746637102996,1.00778045,600.43,599.28,3.25973381]
[1746637103396,1.00778045,600.42,599.28,3.25973381]
[1746637103692,1.00778045,600.41,599.28,3.25973381]
[1746637103999,1.00778045,600.4,599.28,3.25973381]
[1746637104697,1.00778045,600.39,599.28,3.25973381]
[1746637104898,1.00778045,600.38,599.28,3.25973381]
[1746637105300,1.00778045,600.37,599.28,3.25973381]
[1746637105804,1.00778045,600.36,599.28,3.25973381]
[1746637106604,1.00778045,600.35,599.28,3.25973381]
[1746637107104,1.00778045,600.34,599.28,3.25973381]
[1746637107597,1.00778045,600.33,599.28,3.25973381]
[1746637107800,1.00778045,600.32,599.28,3.25973381]
[1746637108504,1.00778045,600.31,599.28,3.25973381]
[1746637109005,1.00778045,600.3,599.28,3.25973381]